Workbook

Sheet ÎNCEPUT
B1: DESPRE ACEST ȘABLON
B2: Urmăriți investițiile inițiale în site-ul web, Beneficii și Costuri sale utilizând acest Instrument de bugetare pentru site-ul web.
B3: Completați numele firmei și dată.
B4: Introduceți detaliile în tabele pentru a calcula automat totalur și măsurători de evaluare.
B5: Notă:
B6: Găsiți instrucțiuni suplimentare în coloana A din foaia de lucru INSTRUMENT PENTRU BUGET. Acest text a fost ascuns intenționat. Pentru a elimina textul, selectați coloana A, apoi DELETE. Pentru a reafișa textul, selectați coloana A, apoi schimbați culoarea de font.
B7: Pentru a afla mai multe despre tabelele din foaia de lucru, apăsați SHIFT, apoi F10 într-un tabel, selectați opțiunea TABEL, apoi TEXT ALTERNATIV.

Sheet INSTRUMENT PENTRU BUGET
A1: Creați bugetul site-ului web în această foaie de lucru. Găsiți instrucțiuni utile despre cum să utilizați această foaie de lucru în celulele din această coloană. Apăsați săgeata în jos pentru a începe.
A2: Introduceți numele firmei în celula din dreapta. | B2: Numele firmei
A3: Titlul acestei foi de lucru se află în celula din dreapta. | B3: Instrument de bugetare pentru site-ul web
A4: Introduceți dată în celula de la dreapta. | B4: Dată
A5: Sfatul se află în celula din dreapta. | B5: Celulele gri conțin calcule care nu ar trebui să fie modificate.
A6: Introduceți detaliile în tabelul Rata, începând cu celula din dreapta. Următoarele instrucțiuni se află în celula A10. | B6: Datele firmei | C6: Rata
B7: Rentabilitatea necesară | C7: 10%
B8: Cota TVA | C8: 30%
A10: Introduceți detaliile în tabelul Investiția inițială, începând cu celula din dreapta. Următoarele instrucțiuni se află în celula A16. | B10: Investiția inițială în site-ul web | C10: AN | D10: 1 | E10: 2 | F10: 3
B11: Hardware (de exemplu, servere) | C11: 25,000.00 lei
B12: Software (de exemplu, software-ul de catalog pentru comerț electronic) | C12: 15,000.00 lei
B13: Dezvoltare (de exemplu, design și dezvoltare pentru site de la terți) | C13: 150,000.00 lei
B14: Total investiții inițiale | C14: =SUBTOTAL(109,InvestițieInițială[AN]) -> 190,000.00 lei
A16: Introduceți detaliile în tabelul Beneficii, începând cu celula de la dreapta. Următoarele instrucțiuni se află în celula A24. | B16: Beneficii de la site-ul web | C16: AN | D16: 1 | E16: 2 | F16: 3
B17: Vânzări directe | D17: 15,000.00 lei | E17: 50,000.00 lei | F17: 75,000.00 lei
B18: Vânzări cu creștere treptată, rezultate din eficiența îmbunătățită a responsabilului cu vânzările sau a promoțiilor | D18: 25,000.00 lei | E18: 25,000.00 lei | F18: 25,000.00 lei
B19: Vânzări cu creștere treptată, rezultate în urma participării crescute a partenerilor | D19: 25,000.00 lei | E19: 25,000.00 lei | F19: 25,000.00 lei
B20: Costuri de deplasare reduse | D20: 25,000.00 lei | E20: 25,000.00 lei | F20: 25,000.00 lei
B21: Costurile serviciului pentru clienți reduse | D21: 50,000.00 lei | E21: 50,000.00 lei | F21: 50,000.00 lei
B22: Beneficii totale | D22: =SUBTOTAL(109,Beneficii[1]) -> 140,000.00 lei | E22: =SUBTOTAL(109,Beneficii[2]) -> 175,000.00 lei | F22: =SUBTOTAL(109,Beneficii[3]) -> 200,000.00 lei
A24: Introduceți detaliile în tabelul Costuri, începând cu celula din dreapta. Valorile sunt calculate automat în celulele care conțin formule. Următoarele instrucțiuni se află în celula A32. | B24: Costuri (excluzând investițiile de capital inițiale) | C24: AN | D24: 1 | E24: 2 | F24: 3
B25: Costul vânzărilor | D25: 7,500.00 lei | E25: 25,000.00 lei | F25: 37,500.00 lei
B26: Întreținere | D26: 15,000.00 lei | E26: 15,000.00 lei | F26: 15,000.00 lei
B27: Management de proiect, asistență pentru clienți | D27: 35,000.00 lei | E27: 35,000.00 lei | F27: 35,000.00 lei
B28: Publicitate online, înregistrarea motorului de căutare | D28: 10,000.00 lei | E28: 10,000.00 lei | F28: 10,000.00 lei
B29: Deprecierea cheltuielilor de capital (calcul utilizează o perioadă de trei ani) | D29: =InvestițieInițială[[#Totals],[AN]]/3 -> 63,333.33 lei | E29: =InvestițieInițială[[#Totals],[AN]]/3 -> 63,333.33 lei | F29: =InvestițieInițială[[#Totals],[AN]]/3 -> 63,333.33 lei
B30: Costuri totale | D30: =SUBTOTAL(109,Costuri[1]) -> 130,833.33 lei | E30: =SUBTOTAL(109,Costuri[2]) -> 148,333.33 lei | F30: =SUBTOTAL(109,Costuri[3]) -> 160,833.33 lei
A32: Valorile sunt calculate automat în tabelul Totaluri, începând cu celula din dreapta. Următoarele instrucțiuni se află în celula A40. | B32: Totaluri | C32: AN | D32: 1 | E32: 2 | F32: 3
B33: Beneficii nete (costuri) | D33: =Beneficii[[#Totals],[1]]-Costuri[[#Totals],[1]] -> 9,166.67 lei | E33: =Beneficii[[#Totals],[2]]-Costuri[[#Totals],[2]] -> 26,666.67 lei | F33: =Beneficii[[#Totals],[3]]-Costuri[[#Totals],[3]] -> 39,166.67 lei
B34: Taxe | D34: =D33*CotaTVA -> 2,750.00 lei | E34: =E33*CotaTVA -> 8,000.00 lei | F34: =F33*CotaTVA -> 11,750.00 lei
B35: Valoare după taxe | D35: =D33-D34 -> 6,416.67 lei | E35: 18,666.67 lei | F35: 27,416.67 lei
B36: Depreciere readăugată | D36: =D29 -> 63,333.33 lei | E36: =E29 -> 63,333.33 lei | F36: =F29 -> 63,333.33 lei
B37: Flux monetar | C37: =-InvestițieInițială[[#Totals],[AN]] -> -190,000.00 lei | D37: =D35+D36 -> 69,750.00 lei | E37: 82,000.00 lei | F37: 90,750.00 lei
B38: Flux monetar cumulativ | C38: =C37 -> -190,000.00 lei | D38: =C38+D37 -> -120,250.00 lei | E38: -38,250.00 lei | F38: 52,500.00 lei
A40: Măsurătorile de evaluare sunt calculate automat în tabelul Măsurători, începând cu celula din dreapta. | B40: Măsurători de evaluare | C40: Valori
B41: Valoarea netă prezentă (NPV) | C41: =C37+(NPV(ROR,D37:F37)) -> 9,359.50 lei
B42: Rentabilitatea internă (IRR) | C42: =IRR(C37:F37) -> 12.66%
B43: Perioadă de returnare a banilor (în ani) | C43: =IF(F38<=0,"Depășește 3 ani",IF(E38<=0,(F37-F38)/F37+2,IF(D38<=0,(E37-E38)/E37+1,IF(C38<=0,(D37-D38)/D37,"NA")))) -> 2.42
